fUSD/lending_fUSD_20260528
["ID","MTS","AMOUNT","RATE_DAILY","PERIOD"]
[423160723,1779898241000,-24858.40346047,0.00019736,2]
[423160724,1779898241000,-500.0,0.00019981,2]
[423160726,1779898241000,-500.0,0.00019981,2]
[423160727,1779898241000,-500.0,0.00019981,2]
[423160669,1779898241000,-150.0,0.00017252,2]
[423160713,1779898241000,-2000.0,0.00018722,2]
[423160708,1779898241000,-500.39154945,0.00018121,2]
[423160728,1779898241000,-500.0,0.00019981,2]
[423160697,1779898241000,-153.56,0.00017723,2]
[423160665,1779898241000,-1677.04019348,0.00017228,2]
[423160670,1779898241000,-150.0,0.0001726,2]
[423160671,1779898241000,-91219.33824659,0.0001727,2]
[423160668,1779898241000,-191.01081584,0.00017247,2]
[423160672,1779898241000,-150.0,0.00017291,2]
[423160682,1779898241000,-150.0,0.00017513,2]
[423160675,1779898241000,-150.0,0.0001735,2]
[423160683,1779898241000,-150.0,0.00017567,2]
[423160707,1779898241000,-547.97,0.00018121,2]
[423160673,1779898241000,-150.0,0.00017317,2]
[423160681,1779898241000,-150.0,0.0001749,2]
[423160680,1779898241000,-150.0,0.00017448,2]
[423160674,1779898241000,-150.0,0.00017337,2]
[423160679,1779898241000,-150.0,0.00017423,2]
[423160676,1779898241000,-150.0,0.00017382,2]
[423160678,1779898241000,-166.84,0.00017414,2]
[423160677,1779898241000,-150.0,0.00017414,2]
[423160689,1779898241000,-272.82919498,0.00017644,2]
[423160695,1779898241000,-501.4576724,0.00017676,2]
[423160690,1779898241000,-150.0,0.00017644,2]
[423160694,1779898241000,-2000.0,0.00017676,2]
[423160693,1779898241000,-500.0,0.00017676,2]
[423160687,1779898241000,-217.92601144,0.00017644,2]
[423160686,1779898241000,-150.00000001,0.00017644,2]
[423160691,1779898241000,-150.0,0.00017644,2]
[423160685,1779898241000,-150.0,0.00017644,2]
[423160692,1779898241000,-178.31216182,0.00017644,2]
[423160684,1779898241000,-150.0,0.00017578,2]
[423160688,1779898241000,-150.0,0.00017644,2]
[423160768,1779898242000,-180.0,0.00021,2]
[423160766,1779898242000,-307.0,0.00021,2]
[423160770,1779898242000,-184.0,0.00021,2]
[423160778,1779898242000,-540.31895832,0.000215,10]
[423160767,1779898242000,-202.0,0.00021,2]
[423160761,1779898242000,-224.0,0.00021,2]
[423160765,1779898242000,-180.0,0.00021,2]
[423160764,1779898242000,-199.0,0.00021,2]
[423160763,1779898242000,-415.0,0.00021,2]
[423160758,1779898242000,-159.57818894,0.00020865,2]
[423160777,1779898242000,-540.31895832,0.000215,10]
[423160772,1779898242000,-169.59251004,0.00021115,2]
[423160786,1779898242000,-96631.95338615,0.00021644,2]
[423160769,1779898242000,-880.0,0.00021,2]
[423160776,1779898242000,-213.52814154,0.00021185,2]
[423160774,1779898242000,-150.0,0.0002112,3]
[423160775,1779898242000,-541.00133101,0.00021184,2]
[423160773,1779898242000,-193.44556802,0.00021115,2]
[423160779,1779898242000,-1163.64371785,0.000215,10]
[423160780,1779898242000,-1163.64371785,0.000215,10]
[423160784,1779898242000,-1327.82877681,0.000215,10]
[423160785,1779898242000,-324.0,0.00021635,2]
[423160782,1779898242000,-1291.34203275,0.000215,10]
[423160781,1779898242000,-1291.34203275,0.000215,10]
[423160783,1779898242000,-1327.82877681,0.000215,10]
[423160760,1779898242000,-236.0,0.00021,2]
[423160771,1779898242000,-3620.0,0.00021052,2]
[423160759,1779898242000,-207.0,0.00021,2]
[423160744,1779898242000,-180.0,0.0002,2]
[423160757,1779898242000,-2000.0,0.00020488,2]
[423160790,1779898242000,-325.0,0.00021954,2]
[423160730,1779898242000,-1038.58,0.00019981,2]
[423160729,1779898242000,-500.0,0.00019981,2]
[423160731,1779898242000,-1038.58,0.00019981,2]
[423160743,1779898242000,-202.0,0.0002,2]
[423160732,1779898242000,-3527.1786694,0.00019982,2]
[423160734,1779898242000,-63999.80498799,0.00019982,2]
[423160736,1779898242000,-236.0,0.0002,2]
[423160737,1779898242000,-224.0,0.0002,2]
[423160739,1779898242000,-415.0,0.0002,2]
[423160740,1779898242000,-199.0,0.0002,2]
[423160738,1779898242000,-216.0,0.0002,2]
[423160742,1779898242000,-307.0,0.0002,2]
[423160741,1779898242000,-180.0,0.0002,2]
[423160735,1779898242000,-207.0,0.0002,2]
[423160746,1779898242000,-184.0,0.0002,2]
[423160750,1779898242000,-1211.0,0.0002,2]
[423160753,1779898242000,-96631.95338615,0.00020175,2]
[423160748,1779898242000,-1006.0,0.0002,2]
[423160751,1779898242000,-2000.0,0.0002,7]
[423160754,1779898242000,-3796.0,0.00020201,2]
[423160745,1779898242000,-880.0,0.0002,2]
[423160747,1779898242000,-164.8451399,0.0002,2]
[423160749,1779898242000,-400.0,0.0002,2]
[423160752,1779898242000,-5209.4,0.0002,2]
[423160755,1779898242000,-91219.33824659,0.00020231,2]
[423160756,1779898242000,-466.2,0.00020381,2]
[423160762,1779898242000,-216.0,0.00021,2]
[423160789,1779898242000,-5000.0,0.00021918,2]
[423160733,1779898242000,-428785.7535646,0.00019982,2]
[423160787,1779898242000,-91219.33824659,0.00021711,2]
[423160820,1779898242000,-199.0,0.00023,2]
[423160818,1779898242000,-415.0,0.00023,2]
[423160815,1779898242000,-236.0,0.00023,2]
[423160823,1779898242000,-202.0,0.00023,2]
[423160822,1779898242000,-307.0,0.00023,2]
[423160827,1779898242000,-96631.95338615,0.00023113,2]
[423160828,1779898242000,-24858.40346047,0.00023189,2]
[423160831,1779898242000,-5209.4,0.00023592,2]
[423160829,1779898242000,-91219.33824659,0.00023191,2]
[423160836,1779898242000,-216.0,0.00024,2]
[423160830,1779898242000,-2000.0,0.00023299,2]
[423160832,1779898242000,-430.45,0.000236,7]
[423160821,1779898242000,-180.0,0.00023,2]
[423160834,1779898242000,-236.0,0.00024,2]
[423160833,1779898242000,-207.0,0.00024,2]
[423160839,1779898242000,-180.0,0.00024,2]
[423160837,1779898242000,-415.0,0.00024,2]
[423160838,1779898242000,-199.0,0.00024,2]
[423160835,1779898242000,-224.0,0.00024,2]
[423160842,1779898242000,-180.0,0.00024,2]
[423160844,1779898242000,-184.0,0.00024,2]
[423160843,1779898242000,-880.0,0.00024,2]
[423160841,1779898242000,-202.0,0.00024,2]
[423160845,1779898242000,-500.0,0.00024,2]
[423160847,1779898242000,-293.75,0.00024174,2]
[423160848,1779898242000,-1365.49,0.00024174,2]
[423160840,1779898242000,-307.0,0.00024,2]
[423160824,1779898242000,-180.0,0.00023,2]
[423160846,1779898242000,-1466.84,0.00024174,2]
[423160819,1779898242000,-639.0,0.00023,2]
[423160817,1779898242000,-216.0,0.00023,2]
[423160802,1779898242000,-184.0,0.00022,2]
[423160792,1779898242000,-236.0,0.00022,2]
[423160791,1779898242000,-207.0,0.00022,2]
[423160793,1779898242000,-224.0,0.00022,2]
[423160794,1779898242000,-216.0,0.00022,2]
[423160801,1779898242000,-880.0,0.00022,2]
[423160797,1779898242000,-180.0,0.00022,2]
[423160799,1779898242000,-202.0,0.00022,2]
[423160795,1779898242000,-415.0,0.00022,2]
[423160796,1779898242000,-199.0,0.00022,2]
[423160798,1779898242000,-307.0,0.00022,2]
[423160800,1779898242000,-180.0,0.00022,2]
[423160803,1779898242000,-450.0,0.00022,2]
[423160788,1779898242000,-5209.4,0.00021796,2]
[423160810,1779898242000,-629.8292092,0.00022491,2]
[423160811,1779898242000,-200.0,0.00022816,2]
[423160826,1779898242000,-184.0,0.00023,2]
[423160816,1779898242000,-224.0,0.00023,2]
[423160813,1779898242000,-3710.0,0.00022861,2]
[423160809,1779898242000,-749.01,0.00022466,2]
[423160812,1779898242000,-164.36020485,0.00022853,2]
[423160825,1779898242000,-880.0,0.00023,2]
[423160807,1779898242000,-466.2,0.00022353,2]
[423160804,1779898242000,-247.49,0.00022,2]
[423160808,1779898242000,-1905.66,0.00022466,2]
[423160805,1779898242000,-226.24,0.00022134,2]
[423160814,1779898242000,-207.0,0.00023,2]
[423160806,1779898242000,-582.14439072,0.00022268,2]
[423160892,1779898243000,-500.0,0.00026023,2]
[423160886,1779898243000,-223.16507989,0.00026013,2]
[423160887,1779898243000,-500.0,0.00026023,2]
[423160888,1779898243000,-530.08819485,0.00026023,2]
[423160895,1779898243000,-3527.1786694,0.00026023,2]
[423160891,1779898243000,-500.0,0.00026023,2]
[423160885,1779898243000,-550.0,0.00026,2]
[423160880,1779898243000,-1466.84,0.00025786,2]
[423160877,1779898243000,-171.19,0.00025,2]
[423160893,1779898243000,-1038.58,0.00026023,2]
[423160894,1779898243000,-1038.58,0.00026023,2]
[423160899,1779898243000,-500.0,0.00026251,3]
[423160890,1779898243000,-500.0,0.00026023,2]
[423160897,1779898243000,-96631.95338615,0.00026051,2]
[423160907,1779898243000,-2382.24,0.00027078,2]
[423160896,1779898243000,-428785.7535646,0.00026023,2]
[423160878,1779898243000,-500.0,0.00025082,2]
[423160900,1779898243000,-1000.0,0.00026276,2]
[423160901,1779898243000,-466.2,0.00026296,2]
[423160906,1779898243000,-400.0,0.000269,9]
[423160903,1779898243000,-24858.40346047,0.00026641,2]
[423160905,1779898243000,-399.08622868,0.00026749,2]
[423160898,1779898243000,-91219.33824659,0.00026151,2]
[423160902,1779898243000,-226.24,0.00026572,2]
[423160889,1779898243000,-500.0,0.00026023,2]
[423160872,1779898243000,-892.98581358,0.00025,2]
[423160881,1779898243000,-293.75,0.00025786,2]
[423160874,1779898243000,-171.19,0.00025,2]
[423160904,1779898243000,-16203.12074179,0.00026749,2]
[423160852,1779898243000,-281.31,0.00024658,2]
[423160853,1779898243000,-1000.0,0.00024658,2]
[423160850,1779898243000,-466.2,0.00024324,2]
[423160849,1779898243000,-50545.86,0.00024174,2]
[423160851,1779898243000,-96631.95338615,0.00024582,2]
[423160854,1779898243000,-194.73,0.00024658,2]
[423160862,1779898243000,-230.0,0.00025,2]
[423160865,1779898243000,-186.74390872,0.00025,2]
[423160856,1779898243000,-91219.33824659,0.00024671,2]
[423160861,1779898243000,-236.0,0.00025,2]
[423160863,1779898243000,-431.0,0.00025,2]
[423160864,1779898243000,-207.63893705,0.00025,2]
[423160858,1779898243000,-247.49,0.0002496,7]
[423160859,1779898243000,-224.80029041,0.00025,2]
[423160860,1779898243000,-249.0,0.00025,2]
[423160855,1779898243000,-195.26,0.00024658,2]
[423160869,1779898243000,-217.0,0.00025,2]
[423160884,1779898243000,-500.0,0.00026,2]
[423160883,1779898243000,-50545.86,0.00025786,2]
[423160882,1779898243000,-1365.49,0.00025786,2]
[423160870,1779898243000,-191.50535349,0.00025,2]
[423160876,1779898243000,-171.19,0.00025,2]
[423160875,1779898243000,-171.19,0.00025,2]
[423160879,1779898243000,-5209.4,0.00025388,7]
[423160873,1779898243000,-203.54272136,0.00025,2]
[423160867,1779898243000,-321.0,0.00025,2]
[423160908,1779898243000,-430.45,0.000272,7]
[423160910,1779898243000,-500.0,0.00027296,2]
[423160941,1779898243000,-195.25,0.00027665,2]
[423160940,1779898243000,-195.22,0.00027641,30]
[423160938,1779898243000,-150.0,0.00027521,2]
[423160946,1779898243000,-204.46,0.0002768,30]
[423160947,1779898243000,-201.07,0.00027785,7]
[423160942,1779898243000,-255.0,0.00027669,30]
[423160949,1779898243000,-255.0,0.00027816,7]
[423160953,1779898243000,-208.97895572,0.00027923,2]
[423160959,1779898243000,-204.46,0.00027973,2]
[423160952,1779898243000,-247.49,0.00027919,7]
[423160948,1779898243000,-195.22,0.00027792,7]
[423160951,1779898243000,-159.54,0.00027861,30]
[423160950,1779898243000,-204.46,0.00027826,7]
[423160955,1779898243000,-160.0,0.00027923,2]
[423160956,1779898243000,-201.07,0.00027937,2]
[423160958,1779898243000,-255.0,0.00027964,2]
[423160954,1779898243000,-215.46156935,0.00027923,2]
[423160961,1779898243000,-1796.34838762,0.00028,2]
[423160962,1779898243000,-1310.27174999,0.00028,2]
[423160960,1779898243000,-159.54,0.00027987,7]
[423160964,1779898243000,-215.46156935,0.00028,7]
[423160963,1779898243000,-484.25240497,0.00028,2]
[423160965,1779898243000,-151.58572336,0.00028082,5]
[423160966,1779898243000,-201.07,0.00028089,30]
[423160915,1779898243000,-500.0,0.00027296,2]
[423160939,1779898243000,-201.07,0.00027634,30]
[423160945,1779898243000,-194.73,0.00027676,2]
[423160957,1779898243000,-195.22,0.00027943,2]
[423160935,1779898243000,-159.15,0.000274,7]
[423160911,1779898243000,-190.88366952,0.00027296,2]
[423160937,1779898243000,-500.0,0.00027419,4]
[423160912,1779898243000,-500.0,0.00027296,2]
[423160913,1779898243000,-500.0,0.00027296,2]
[423160917,1779898243000,-199.10383751,0.00027296,2]
[423160914,1779898243000,-500.0,0.00027296,2]
[423160909,1779898243000,-500.0,0.00027296,2]
[423160918,1779898243000,-1038.58,0.00027296,2]
[423160919,1779898243000,-1038.58,0.00027296,2]
[423160922,1779898243000,-1038.58,0.00027296,2]
[423160920,1779898243000,-1038.58,0.00027296,2]
[423160921,1779898243000,-1038.58,0.00027296,2]
[423160923,1779898243000,-1038.58,0.00027296,2]
[423160916,1779898243000,-500.0,0.00027296,2]
[423160924,1779898243000,-1038.7585681,0.00027296,2]
[423160936,1779898243000,-6608.05,0.000274,14]
[423160933,1779898243000,-21371.53,0.00027397,2]
[423160931,1779898243000,-18626.62,0.00027397,10]
[423160934,1779898243000,-9804.4,0.00027397,2]
[423160929,1779898243000,-300.0,0.00027397,2]
[423160932,1779898243000,-9999.99,0.00027397,2]
[423160928,1779898243000,-281.31,0.00027397,2]
[423160927,1779898243000,-1500.0,0.00027397,2]
[423160925,1779898243000,-1500000.0,0.00027297,2]
[423160926,1779898243000,-1500.72500388,0.00027397,2]
[423160930,1779898243000,-9767.84,0.00027397,10]
[423161014,1779898244000,-499.99,0.00028203,2]
[423161011,1779898244000,-9999.99,0.00028203,2]
[423161010,1779898244000,-134522.98,0.00028203,10]
[423161012,1779898244000,-212.38,0.00028203,2]
[423161013,1779898244000,-2132.43,0.00028203,2]
[423161008,1779898244000,-14184.25,0.00028203,2]
[423161002,1779898244000,-353.36,0.00028203,2]
[423161005,1779898244000,-4115.18,0.00028203,5]
[423161009,1779898244000,-521.0,0.00028203,2]
[423161007,1779898244000,-150.99,0.00028203,2]
[423161018,1779898244000,-255.0,0.0002826,7]
[423161006,1779898244000,-176.64,0.00028203,2]
[423161017,1779898244000,-195.22,0.00028245,7]
[423161032,1779898244000,-484.25240497,0.000288,2]
[423161015,1779898244000,-159.54,0.0002824,30]
[423161020,1779898244000,-466.2,0.00028267,2]
[423161019,1779898244000,-204.46,0.00028266,7]
[423161024,1779898244000,-1310.27174999,0.000285,2]
[423161021,1779898244000,-159.54,0.00028367,7]
[423161022,1779898244000,-159.54,0.00028493,2]
[423161023,1779898244000,-1796.34838762,0.000285,2]
[423161026,1779898244000,-500.0,0.00028588,5]
[423161036,1779898244000,-167.16450667,0.00028971,2]
[423161025,1779898244000,-484.25240497,0.000285,2]
[423161027,1779898244000,-159.54,0.0002862,30]
[423161030,1779898244000,-1796.34838762,0.000288,2]
[423161003,1779898244000,-999.99,0.00028203,2]
[423161016,1779898244000,-201.07,0.00028241,7]
[423161004,1779898244000,-9999.99,0.00028203,2]
[423160969,1779898244000,-255.0,0.00028112,30]
[423160999,1779898244000,-1580.23,0.00028203,2]
[423161029,1779898244000,-159.54,0.00028746,7]
[423160968,1779898244000,-639.0,0.000281,7]
[423160970,1779898244000,-159.54,0.00028114,2]
[423160967,1779898244000,-195.22,0.00028094,30]
[423160972,1779898244000,-204.46,0.0002812,30]
[423160983,1779898244000,-150.0,0.00028153,2]
[423160985,1779898244000,-277.0,0.00028153,2]
[423160987,1779898244000,-1796.34838762,0.000282,2]
[423160971,1779898244000,-294.0,0.00028118,30]
[423160976,1779898244000,-150.0,0.00028153,2]
[423160973,1779898244000,-194.74,0.0002813,7]
[423160974,1779898244000,-195.26,0.0002813,7]
[423160988,1779898244000,-1310.27174999,0.000282,2]
[423160975,1779898244000,-150.0,0.00028153,2]
[423160980,1779898244000,-150.0,0.00028153,2]
[423160981,1779898244000,-150.0,0.00028153,2]
[423160978,1779898244000,-150.0,0.00028153,2]
[423160989,1779898244000,-484.25240497,0.000282,2]
[423160992,1779898244000,-5601.76,0.00028203,2]
[423160993,1779898244000,-18232.27,0.00028203,20]
[423161000,1779898244000,-24999.99,0.00028203,2]
[423160997,1779898244000,-4999.99,0.00028203,2]
[423160998,1779898244000,-7653.62,0.00028203,2]
[423160990,1779898244000,-9999.99,0.00028203,2]
[423161001,1779898244000,-27094.47,0.00028203,2]
[423160994,1779898244000,-73881.12,0.00028203,2]
[423160996,1779898244000,-9999.99,0.00028203,2]
[423160995,1779898244000,-299.99,0.00028203,12]
[423161028,1779898244000,-6608.05,0.000287,14]
[423161043,1779898244000,-639.0,0.00029,7]
[423161031,1779898244000,-1310.27174999,0.000288,2]
[423161066,1779898244000,-338.80384322,0.000295,2]
[423161063,1779898244000,-648.54964874,0.00029495,2]
[423161067,1779898244000,-338.80384322,0.000295,2]
[423161068,1779898244000,-1000.0,0.000297,7]
[423161075,1779898244000,-180.0,0.00029861,30]
[423161069,1779898244000,-500.0,0.00029756,6]
[423161070,1779898244000,-180.0,0.00029835,30]
[423161071,1779898244000,-880.0,0.00029835,30]
[423161072,1779898244000,-184.0,0.00029835,30]
[423161077,1779898244000,-202.0,0.00029861,30]
[423161080,1779898244000,-224.0,0.00029863,30]
[423161087,1779898244000,-200.0,0.0003,2]
[423161078,1779898244000,-207.0,0.00029863,30]
[423161076,1779898244000,-307.0,0.00029861,30]
[423161079,1779898244000,-236.0,0.00029863,30]
[423161081,1779898244000,-216.0,0.00029863,30]
[423161082,1779898244000,-415.0,0.00029863,30]
[423161083,1779898244000,-1375.0,0.000299,3]
[423161086,1779898244000,-213.19844537,0.00029963,2]
[423161084,1779898244000,-168.33516456,0.00029963,5]
[423161085,1779898244000,-150.91644121,0.00029963,7]
[423161091,1779898244000,-152.92585677,0.00030014,7]
[423161089,1779898244000,-200.0,0.0003,2]
[423161094,1779898244000,-225.14,0.00030137,2]
[423161092,1779898244000,-24858.40346047,0.00030094,2]
[423161093,1779898244000,-281.31,0.00030137,2]
[423161035,1779898244000,-150.0,0.00028897,2]
[423161074,1779898244000,-199.0,0.00029861,30]
[423161073,1779898244000,-159.0,0.00029835,30]
[423161088,1779898244000,-200.0,0.0003,2]
[423161062,1779898244000,-150.0,0.00029312,22]
[423161064,1779898244000,-430.45,0.000295,7]
[423161034,1779898244000,-159.54,0.00028873,2]
[423161039,1779898244000,-165.49,0.00029,2]
[423161037,1779898244000,-165.49,0.00029,2]
[423161049,1779898244000,-200.0,0.00029,2]
[423161090,1779898244000,-2000.0,0.0003,7]
[423161045,1779898244000,-185.62,0.00029,2]
[423161044,1779898244000,-185.63,0.00029,2]
[423161040,1779898244000,-165.49,0.00029,2]
[423161047,1779898244000,-200.0,0.00029,2]
[423161042,1779898244000,-159.59,0.00029,30]
[423161038,1779898244000,-165.49,0.00029,2]
[423161048,1779898244000,-200.0,0.00029,2]
[423161041,1779898244000,-181.8,0.00029,2]
[423161033,1779898244000,-200.0,0.0002883,30]
[423161065,1779898244000,-338.80384325,0.000295,2]
[423161059,1779898244000,-1796.34838762,0.000291,2]
[423161058,1779898244000,-1102.76,0.00029009,2]
[423161056,1779898244000,-1197.04,0.00029009,2]
[423161046,1779898244000,-200.0,0.00029,2]
[423161060,1779898244000,-1310.27174999,0.000291,2]
[423161055,1779898244000,-9999.99,0.00029009,2]
[423161057,1779898244000,-3746.13,0.00029009,2]
[423161052,1779898244000,-200.0,0.00029,2]
[423161053,1779898244000,-195.05,0.00029,2]
[423161050,1779898244000,-200.0,0.00029,2]
[423161061,1779898244000,-484.25240497,0.000291,2]
[423161051,1779898244000,-200.0,0.00029,2]
[423161054,1779898244000,-201.0,0.00029,2]
[423161137,1779898245000,-227.07116316,0.00031504,7]
[423161138,1779898245000,-458.77757031,0.00031504,7]
[423161134,1779898245000,-484.16206517,0.00031451,5]
[423161136,1779898245000,-639.59533612,0.00031451,2]
[423161132,1779898245000,-155.207636,0.00031451,7]
[423161116,1779898245000,-236.0,0.00030863,30]
[423161140,1779898245000,-154.1402235,0.00031506,7]
[423161131,1779898245000,-213.13909119,0.00031451,7]
[423161130,1779898245000,-200.0,0.00031096,2]
[423161128,1779898245000,-152.0,0.00031017,7]
[423161129,1779898245000,-152.0,0.00031067,7]
[423161135,1779898245000,-236.60698335,0.00031451,7]
[423161139,1779898245000,-184.8778881,0.00031504,2]
[423161133,1779898245000,-505.00549367,0.00031451,5]
[423161146,1779898245000,-7693.8871005,0.00031692,2]
[423161142,1779898245000,-233.43335116,0.00031537,7]
[423161148,1779898245000,-582.14439072,0.00031705,2]
[423161152,1779898245000,-184.0,0.00031835,30]
[423161144,1779898245000,-549.62428819,0.00031538,2]
[423161153,1779898245000,-159.0,0.00031835,30]
[423161143,1779898245000,-452.74932363,0.00031537,7]
[423161154,1779898245000,-150.0,0.00031858,2]
[423161149,1779898245000,-250.0,0.00031805,7]
[423161145,1779898245000,-167.16450667,0.00031578,2]
[423161150,1779898245000,-180.0,0.00031835,30]
[423161147,1779898245000,-326543.2531414,0.00031692,2]
[423161151,1779898245000,-880.0,0.00031835,30]
[423161155,1779898245000,-199.0,0.00031861,30]
[423161141,1779898245000,-300.0,0.00031523,2]
[423161125,1779898245000,-274.8121441,0.00030941,2]
[423161098,1779898245000,-596.64759467,0.00030137,2]
[423161126,1779898245000,-226.24,0.0003101,120]
[423161156,1779898245000,-180.0,0.00031861,30]
[423161100,1779898245000,-466.2,0.00030239,2]
[423161099,1779898245000,-6608.05,0.000302,14]
[423161097,1779898245000,-700.17,0.00030137,2]
[423161095,1779898245000,-346.69,0.00030137,2]
[423161101,1779898245000,-150.0,0.00030341,2]
[423161096,1779898245000,-200.0,0.00030137,2]
[423161113,1779898245000,-307.0,0.00030861,30]
[423161108,1779898245000,-336.67032911,0.00030856,5]
[423161106,1779898245000,-184.0,0.00030835,30]
[423161114,1779898245000,-202.0,0.00030861,30]
[423161105,1779898245000,-880.0,0.00030835,30]
[423161103,1779898245000,-5531.0,0.000308,5]
[423161104,1779898245000,-180.0,0.00030835,30]
[423161102,1779898245000,-2416.0,0.0003062,5]
[423161107,1779898245000,-159.0,0.00030835,30]
[423161109,1779898245000,-242.08103259,0.00030856,5]
[423161112,1779898245000,-180.0,0.00030861,30]
[423161111,1779898245000,-199.0,0.00030861,30]
[423161110,1779898245000,-426.39689075,0.00030856,2]
[423161117,1779898245000,-224.0,0.00030863,30]
[423161115,1779898245000,-207.0,0.00030863,30]
[423161119,1779898245000,-415.0,0.00030863,30]
[423161121,1779898245000,-159.15,0.000309,7]
[423161118,1779898245000,-216.0,0.00030863,30]
[423161120,1779898245000,-247.49,0.00030879,7]
[423161124,1779898245000,-301.83288242,0.00030941,7]
[423161123,1779898245000,-500.0,0.00030925,8]
[423161122,1779898245000,-305.85171354,0.00030908,7]
[423161127,1779898245000,-2841.95,0.00031016,15]
[423161167,1779898245000,-188.97933496,0.00032,120]
[423161159,1779898245000,-207.0,0.00031863,30]
[423161226,1779898245000,-1940.36,0.00032877,30]
[423161197,1779898245000,-4692.447,0.000326,33]
[423161195,1779898245000,-180.0,0.00032415,9]
[423161196,1779898245000,-152.0,0.00032591,30]
[423161198,1779898245000,-284.685,0.000326,33]
[423161199,1779898245000,-152.0,0.0003263,30]
[423161205,1779898245000,-200.0,0.00032743,2]
[423161200,1779898245000,-500.0,0.00032712,2]
[423161204,1779898245000,-200.0,0.00032743,2]
[423161201,1779898245000,-200.0,0.00032743,2]
[423161202,1779898245000,-200.0,0.00032743,2]
[423161203,1779898245000,-200.0,0.00032743,2]
[423161208,1779898245000,-324.0,0.00032743,2]
[423161218,1779898245000,-207.0,0.00032863,30]
[423161219,1779898245000,-236.0,0.00032863,30]
[423161207,1779898245000,-200.0,0.00032743,2]
[423161210,1779898245000,-180.0,0.00032835,30]
[423161209,1779898245000,-430.45,0.000328,7]
[423161211,1779898245000,-880.0,0.00032835,30]
[423161215,1779898245000,-180.0,0.00032861,30]
[423161214,1779898245000,-199.0,0.00032861,30]
[423161212,1779898245000,-184.0,0.00032835,30]
[423161216,1779898245000,-307.0,0.00032861,30]
[423161213,1779898245000,-159.0,0.00032835,30]
[423161217,1779898245000,-202.0,0.00032861,30]
[423161220,1779898245000,-224.0,0.00032863,30]
[423161223,1779898245000,-415.0,0.00032863,30]
[423161161,1779898245000,-224.0,0.00031863,30]
[423161221,1779898245000,-216.0,0.00032863,30]
[423161224,1779898245000,-281.31,0.00032877,2]
[423161194,1779898245000,-2273.56,0.00032383,15]
[423161191,1779898245000,-428785.7535646,0.00032064,2]
[423161206,1779898245000,-200.0,0.00032743,2]
[423161192,1779898245000,-500.0,0.00032093,9]
[423161157,1779898245000,-307.0,0.00031861,30]
[423161193,1779898245000,-466.2,0.0003221,5]
[423161160,1779898245000,-236.0,0.00031863,30]
[423161166,1779898245000,-1111.29009507,0.00032,120]
[423161164,1779898245000,-200.0,0.00032,120]
[423161163,1779898245000,-415.0,0.00031863,30]
[423161162,1779898245000,-216.0,0.00031863,30]
[423161165,1779898245000,-198.52157595,0.00032,120]
[423161168,1779898245000,-184.93250208,0.00032,120]
[423161174,1779898245000,-172.85304604,0.00032,120]